bitfinex/quotes_BTCUSD_20241003
["timestamp","ask_amount","ask_price","bid_price","bid_amount"]
[1727924331543,0.20235417,61322.0,61321.0,0.005]
[1727924331835,0.20235417,61322.0,61321.0,0.01]
[1727924333178,0.20335417,61322.0,61321.0,0.01]
[1727924333608,0.20235417,61322.0,61321.0,0.01]
[1727924333855,0.20335417,61322.0,61321.0,0.022]
[1727924337831,0.17779025,61322.0,61321.0,0.022]
[1727924340814,0.20335481,61322.0,61321.0,0.022]
[1727924341066,0.20335481,61322.0,61321.0,0.52356271]
[1727924341067,0.01471725,61322.0,61321.0,0.52356271]
[1727924341314,0.01471725,61322.0,61321.0,0.57129749]
[1727924341554,0.02756369,61322.0,61321.0,0.57129749]
[1727924342249,0.02920169,61322.0,61321.0,0.24503478]
[1727924342476,0.02920169,61322.0,61321.0,0.37873553]
[1727924343371,0.02920169,61322.0,61321.0,0.37868453]
[1727924347225,0.02920169,61322.0,61321.0,0.360376]
[1727924347671,0.003638,61322.0,61321.0,0.39673912]
[1727924350074,0.003638,61322.0,61321.0,0.37856938]
[1727924350306,0.003638,61322.0,61321.0,0.39672102]
[1727924351012,0.003638,61322.0,61321.0,0.37856938]
[1727924351231,0.003638,61322.0,61321.0,0.39670205]
[1727924351922,0.02920083,61322.0,61321.0,0.39670205]
[1727924352580,0.02920083,61322.0,61321.0,0.37856938]
[1727924353024,0.02920083,61322.0,61321.0,0.360376]
[1727924353251,0.02920083,61322.0,61321.0,0.37849887]
[1727924353463,0.02920083,61322.0,61321.0,0.360376]
[1727924354747,0.03492651,61322.0,61321.0,0.360376]
[1727924355009,0.04432935,61322.0,61321.0,0.360376]
[1727924355230,0.02920083,61322.0,61321.0,0.360376]
[1727924357594,0.003638,61322.0,61321.0,0.360376]
[1727924360617,0.02920085,61322.0,61321.0,0.360376]
[1727924361055,0.02920085,61322.0,61321.0,0.1021]
[1727924361490,0.04490843,61322.0,61321.0,0.1021]
[1727924362146,0.04490843,61322.0,61321.0,0.265176]
[1727924363752,0.02920085,61322.0,61321.0,0.265176]
[1727924364180,0.04488834,61322.0,61321.0,0.265176]
[1727924365709,0.02920085,61322.0,61321.0,0.265176]
[1727924367502,0.003638,61322.0,61321.0,0.265176]
[1727924371830,0.003638,61322.0,61321.0,0.022]
[1727924371831,0.19227463,61322.0,61321.0,0.022]
[1727924372297,0.20795388,61322.0,61321.0,0.022]
[1727924377732,0.18239025,61322.0,61321.0,0.022]
[1727924382364,0.23136942,61322.0,61321.0,0.022]
[1727924382577,0.18239025,61322.0,61321.0,0.022]
[1727924382822,0.23136942,61322.0,61321.0,0.022]
[1727924383461,0.18239025,61322.0,61321.0,0.022]
[1727924385922,0.23136942,61322.0,61321.0,0.022]
[1727924387315,0.18239025,61322.0,61321.0,0.022]
[1727924387558,0.36445422,61322.0,61321.0,0.022]
[1727924387788,0.26988073,61322.0,61321.0,0.022]
[1727924388001,0.18239025,61322.0,61321.0,0.022]
[1727924388447,0.23134722,61322.0,61321.0,0.022]
[1727924390313,0.36465223,61322.0,61321.0,0.022]
[1727924390743,0.4136536,61322.0,61321.0,0.022]
[1727924390960,0.31569526,61322.0,61321.0,0.022]
[1727924391177,0.163078,61320.0,61319.0,0.000819]
[1727924391622,0.17865978,61320.0,61319.0,0.000819]
[1727924392730,0.17965978,61320.0,61319.0,0.006819]
[1727924392969,0.30196139,61320.0,61319.0,0.006819]
[1727924394339,0.30296139,61320.0,61319.0,0.014819]
[1727924394560,0.18065978,61320.0,61319.0,0.014819]
[1727924394745,0.20622814,61320.0,61319.0,0.014819]
[1727924395411,0.30401501,61320.0,61319.0,0.014819]
[1727924397423,0.20622814,61320.0,61319.0,0.014819]
[1727924397870,0.18065978,61320.0,61319.0,0.014819]
[1727924400377,0.18065978,61320.0,61319.0,0.014469]
[1727924400592,0.20622729,61320.0,61319.0,0.014469]
[1727924402189,0.18065978,61320.0,61319.0,0.014469]
[1727924403512,0.25397567,61320.0,61319.0,0.014469]
[1727924404167,0.18065978,61320.0,61319.0,0.014469]
[1727924404385,0.22855052,61320.0,61319.0,0.008469]
[1727924404596,0.22855052,61320.0,61319.0,0.000469]
[1727924404597,0.17865978,61320.0,61319.0,0.000469]
[1727924405034,0.17865978,61320.0,61319.0,0.002469]
[1727924405488,0.17865978,61320.0,61319.0,0.000469]
[1727924405979,0.17865978,61320.0,61319.0,0.002469]
[1727924406912,0.17865978,61320.0,61319.0,0.006469]
[1727924408610,0.17865978,61320.0,61319.0,0.000469]
[1727924409251,0.17865978,61320.0,61319.0,0.002469]
[1727924410162,0.17865978,61320.0,61319.0,0.006469]
[1727924411328,0.20422676,61320.0,61319.0,0.006469]
[1727924411755,0.20422676,61320.0,61319.0,0.002469]
[1727924411995,0.20586276,61320.0,61319.0,0.002469]
[1727924412490,0.20586276,61320.0,61319.0,0.000469]
[1727924412909,0.21086276,61320.0,61319.0,0.000469]
[1727924413117,0.21286276,61320.0,61319.0,0.000469]
[1727924413578,0.21086276,61320.0,61319.0,0.000469]
[1727924414056,0.20586276,61320.0,61319.0,0.004469]
[1727924414485,0.20586276,61320.0,61319.0,0.006469]
[1727924417404,0.18029578,61320.0,61319.0,0.006469]
[1727924420724,0.20586259,61320.0,61319.0,0.006469]
[1727924420955,0.19306079,61320.0,61319.0,0.006469]
[1727924421384,0.04278459,61320.0,61319.0,0.006469]
[1727924421654,0.04278459,61320.0,61319.0,0.24695]
[1727924421869,0.04278459,61320.0,61319.0,0.083869]
[1727924422080,0.04278459,61320.0,61319.0,0.24695]
[1727924422512,0.04278459,61320.0,61319.0,0.33855]
[1727924422726,0.02720281,61320.0,61319.0,0.33855]
[1727924422944,0.02720281,61320.0,61319.0,0.175469]
[1727924423164,0.20392654,61320.0,61319.0,0.175469]
[1727924423380,0.04084854,61320.0,61319.0,0.175469]
[1727924424260,0.04084854,61320.0,61319.0,0.33855]
[1727924427544,0.01528173,61320.0,61319.0,0.33855]
[1727924428470,0.17835973,61320.0,61319.0,0.175469]
[1727924428688,0.01528173,61320.0,61319.0,0.175469]
[1727924430682,0.04084755,61320.0,61319.0,0.175469]
[1727924431552,0.04084755,61320.0,61319.0,0.33855]
[1727924431761,0.04084755,61320.0,61319.0,0.175469]
[1727924433103,0.20392555,61320.0,61319.0,0.175469]
[1727924434229,0.20392555,61320.0,61319.0,0.169469]
[1727924435572,0.20392555,61320.0,61319.0,0.171469]
[1727924436071,0.20392555,61320.0,61319.0,0.169469]
[1727924436502,0.20392555,61320.0,61319.0,0.170469]
[1727924437367,0.18376401,61320.0,61319.0,0.170469]
[1727924437584,0.17672193,61320.0,61319.0,0.170469]
[1727924437797,0.17772193,61320.0,61319.0,0.170469]
[1727924438860,0.01464393,61320.0,61319.0,0.170469]
[1727924439074,0.17772193,61320.0,61319.0,0.170469]
[1727924440246,0.01464393,61320.0,61319.0,0.33355]
[1727924440696,0.001,61320.0,61319.0,0.33355]
[1727924442314,0.001,61320.0,61319.0,0.35300639]
[1727924442554,0.001,61320.0,61319.0,0.3841992]
[1727924442766,0.001,61320.0,61319.0,0.36473894]
[1727924442987,0.001,61320.0,61319.0,0.38323203]
[1727924443418,0.001,61320.0,61319.0,0.38423203]
[1727924443911,0.001,61320.0,61319.0,0.38323203]
[1727924444123,0.0255627,61320.0,61319.0,0.38323203]
[1727924444355,0.0255627,61320.0,61319.0,0.35204309]
[1727924444566,0.0255627,61320.0,61319.0,0.35604309]
[1727924444779,0.0255627,61320.0,61319.0,0.35204309]
[1727924445216,0.0265627,61320.0,61319.0,0.35904309]
[1727924445428,0.0275627,61320.0,61319.0,0.37004309]
[1727924446291,0.0265627,61320.0,61319.0,0.35904309]
[1727924446509,0.0265627,61320.0,61319.0,0.33955]
[1727924446731,0.0275627,61320.0,61319.0,0.3710056]
[1727924446955,0.0275627,61320.0,61319.0,0.35155]
[1727924447629,0.03904841,61320.0,61319.0,0.35155]
[1727924447843,0.0275627,61320.0,61319.0,0.35155]
[1727924448723,0.0291987,61320.0,61319.0,0.35155]
[1727924450259,0.04068295,61320.0,61319.0,0.35155]
[1727924450701,0.01512025,61320.0,61319.0,0.096869]
[1727924451411,0.01512025,61320.0,61319.0,0.25995]
[1727924451627,0.01312025,61320.0,61319.0,0.24095]
[1727924451837,0.01512025,61320.0,61319.0,0.25895]
[1727924452075,0.01412025,61320.0,61319.0,0.25195]
[1727924452302,0.01312025,61320.0,61319.0,0.24095]
[1727924452517,0.01512025,61320.0,61319.0,0.25795]
[1727924453368,0.01512025,61320.0,61319.0,0.094869]
[1727924454005,0.01512025,61320.0,61319.0,0.25795]
[1727924454434,0.01512025,61320.0,61319.0,0.094869]
[1727924454649,0.17819825,61320.0,61319.0,0.094869]
[1727924455072,0.01512025,61320.0,61319.0,0.094869]
[1727924456780,0.01512025,61320.0,61319.0,0.017469]
[1727924456998,0.17819825,61320.0,61319.0,0.017469]
[1727924457698,0.01512025,61320.0,61319.0,0.017469]
[1727924458618,0.17819825,61320.0,61319.0,0.017469]
[1727924461177,0.01512025,61320.0,61319.0,0.017469]
[1727924461406,0.01512025,61320.0,61319.0,0.18055]
[1727924461630,0.01512025,61320.0,61319.0,0.36305]
[1727924461838,0.003636,61320.0,61319.0,0.36305]
[1727924462537,0.003636,61320.0,61319.0,0.199969]
[1727924462762,0.01571523,61320.0,61319.0,0.199969]
[1727924462954,0.0157167,61320.0,61319.0,0.36305]
[1727924463408,0.0157167,61320.0,61319.0,0.199969]
[1727924463624,0.0157167,61320.0,61319.0,0.36305]
[1727924468473,0.0157167,61320.0,61319.0,0.199969]
[1727924469117,0.0157167,61320.0,61319.0,0.017469]
[1727924469118,0.1787947,61320.0,61319.0,0.017469]
[1727924469331,0.0157167,61320.0,61319.0,0.017469]
[1727924469543,0.22776507,61320.0,61319.0,0.017469]
[1727924469773,0.1787947,61320.0,61319.0,0.017469]
[1727924470648,0.20436081,61320.0,61319.0,0.017469]
[1727924472183,0.04128281,61320.0,61319.0,0.017469]
[1727924472409,0.04128281,61320.0,61319.0,0.35705]
[1727924472630,0.03924475,61320.0,61319.0,0.54457889]
[1727924472852,0.001638,61322.0,61319.0,0.54457889]
[1727924472853,0.001638,61322.0,61321.0,0.291076]
[1727924473100,0.001638,61322.0,61321.0,0.78668879]
[1727924473308,0.001638,61322.0,61321.0,0.85675405]
[1727924473517,0.001638,61322.0,61321.0,0.78342798]
[1727924474175,0.001638,61322.0,61321.0,0.79542798]
[1727924474642,0.002638,61322.0,61321.0,0.80542798]
[1727924474855,0.002638,61322.0,61321.0,0.77742798]
[1727924475108,0.002638,61322.0,61321.0,0.6899612]
[1727924475330,0.002638,61322.0,61321.0,1.02247597]
[1727924475546,0.002638,61322.0,61321.0,0.80528254]
[1727924475765,0.002638,61322.0,61321.0,0.85101183]
[1727924475974,0.002638,61322.0,61321.0,0.83042006]
[1727924476192,0.002638,61322.0,61321.0,0.89978497]
[1727924476619,0.002638,61322.0,61321.0,0.85294352]
[1727924477694,0.002638,61322.0,61321.0,0.90175669]
[1727924478556,0.002638,61322.0,61321.0,0.88123323]
[1727924478766,0.002638,61322.0,61321.0,0.90171939]
[1727924479002,0.002638,61322.0,61321.0,0.85290622]
[1727924479235,0.002638,61322.0,61321.0,0.90169328]
[1727924479523,0.002638,61322.0,61321.0,0.85090622]
[1727924479770,0.002638,61322.0,61321.0,0.82003774]
[1727924480024,0.002638,61322.0,61321.0,0.79955158]
[1727924480526,0.02819776,61322.0,61321.0,0.79955158]
[1727924480765,0.002638,61322.0,61321.0,0.79955158]
[1727924481005,0.00255646,61322.0,61321.0,0.79955158]
[1727924481455,0.00255646,61322.0,61321.0,0.79455158]
[1727924483019,0.0499967,61334.0,61330.0,0.46674807]
[1727924483261,0.0499967,61334.0,61330.0,0.80993758]
[1727924483504,0.24504799,61343.0,61330.0,0.80993758]
[1727924483505,0.24504799,61343.0,61330.0,0.85866733]
[1727924483752,0.0255554,61335.0,61330.0,0.91002197]
[1727924483989,0.0255554,61335.0,61330.0,0.86129222]
[1727924484235,0.0255554,61335.0,61330.0,0.90998778]
[1727924484491,0.0255554,61335.0,61330.0,0.79393758]
[1727924484739,0.0255554,61335.0,61330.0,0.78693758]
[1727924484974,0.0255554,61335.0,61330.0,0.80072168]
[1727924486226,0.0255554,61335.0,61330.0,0.81472168]
[1727924487439,0.0494885,61349.0,61330.0,0.79564478]
[1727924487656,0.0494885,61349.0,61330.0,0.81672168]
[1727924488304,0.3754915,61349.0,61330.0,0.801835]
[1727924488518,0.3754915,61349.0,61330.0,0.8189119]
[1727924488736,0.163011,61346.0,61330.0,0.799835]
[1727924489661,0.3754915,61349.0,61330.0,0.799835]
[1727924489878,0.163007,61348.0,61330.0,0.799835]
[1727924490524,0.32602,61346.0,61330.0,0.794835]
[1727924490749,0.3754915,61349.0,61330.0,0.794835]
[1727924490750,0.4674915,61349.0,61330.0,0.794835]
[1727924491199,0.163009,61346.0,61330.0,0.794835]
[1727924491436,0.163009,61346.0,61330.0,0.799835]
[1727924491673,0.0255562,61334.0,61330.0,0.799835]
[1727924497374,0.32602,61346.0,61330.0,0.794835]
[1727924497585,0.163013,61345.0,61330.0,0.794835]
[1727924497798,0.163013,61345.0,61330.0,0.799835]
[1727924498052,0.326018,61347.0,61330.0,0.799835]
[1727924498291,0.163013,61345.0,61330.0,0.799835]
[1727924499254,0.163007,61347.0,61330.0,0.799835]
[1727924499500,0.163007,61347.0,61330.0,0.8189095]
[1727924500460,0.0456,61348.0,61330.0,0.8189095]
[1727924500669,0.16301,61346.0,61330.0,0.8189095]
[1727924500893,0.0494885,61349.0,61330.0,0.8279095]
[1727924501142,0.0494885,61349.0,61330.0,0.83611288]
[1727924501356,0.0494885,61349.0,61330.0,0.85011288]
[1727924501568,0.0494885,61349.0,61330.0,0.89643829]
[1727924501779,0.02719305,61331.0,61330.0,0.89643829]
[1727924501996,0.0494885,61349.0,61348.0,0.241204]
[1727924502498,0.02555411,61356.0,61355.0,0.162985]
[1727924502732,0.0497573,61361.0,61356.0,0.162983]
[1727924502934,0.162972,61360.0,61356.0,0.162983]
[1727924503941,0.162975,61359.0,61356.0,0.162983]
[1727924505724,0.325951,61359.0,61350.0,0.325995]
[1727924505967,0.162986,61355.0,61353.0,0.24504799]
[1727924506455,0.18853802,61355.0,61351.0,0.162995]
[1727924506712,0.325945,61360.0,61350.0,0.57104199]
[1727924506954,0.16298,61357.0,61351.0,0.32599]
[1727924507197,0.162973,61360.0,61355.0,0.162984]
[1727924507691,0.162973,61360.0,61356.0,0.162983]
[1727924508984,0.000818,61359.0,61356.0,0.162983]
[1727924509502,0.000818,61359.0,61354.0,0.325974]
[1727924509747,0.02636907,61359.0,61356.0,0.163981]
[1727924510001,0.18934507,61359.0,61356.0,0.001]
[1727924511460,0.18934507,61359.0,61355.0,0.162985]
[1727924511685,0.18934507,61359.0,61350.0,0.24504799]
[1727924511686,0.00597651,61358.0,61350.0,0.57104299]
[1727924511932,0.162985,61356.0,61351.0,0.162996]
[1727924512188,0.16895651,61358.0,61352.0,0.162992]
[1727924512431,0.16895651,61358.0,61350.0,0.57104299]
[1727924512432,0.00597435,61355.0,61353.0,0.16299]
[1727924512765,0.02636907,61359.0,61353.0,0.16299]
[1727924512766,0.02636907,61359.0,61355.0,0.002]
[1727924512986,0.02636907,61359.0,61356.0,0.162983]
[1727924513469,0.18934507,61359.0,61354.0,0.162986]
[1727924513727,0.18934507,61359.0,61355.0,0.162985]
[1727924515236,0.02636907,61359.0,61356.0,0.162982]
[1727924515768,0.18934407,61359.0,61356.0,0.162982]
[1727924516553,0.02636907,61359.0,61356.0,0.002]
[1727924516811,0.162978,61358.0,61356.0,0.002]
[1727924518282,0.162978,61358.0,61356.0,0.001]
[1727924518837,0.162978,61358.0,61356.0,0.004]
[1727924521279,0.16298,61357.0,61356.0,0.004]
[1727924521547,0.25318,61357.0,61356.0,0.004]
[1727924522268,0.25318,61357.0,61356.0,0.001]
[1727924523464,0.162993,61352.0,61351.0,0.24504799]
[1727924523975,0.163005,61348.0,61344.0,0.163013]
[1727924525979,0.163005,61348.0,61345.0,0.163012]
[1727924526671,0.00603704,61347.0,61345.0,0.163012]
[1727924527080,0.00603704,61347.0,61344.0,0.163015]
[1727924527508,0.00603704,61347.0,61345.0,0.007]
[1727924528621,0.00603704,61347.0,61345.0,0.014]
[1727924528827,0.00603704,61347.0,61345.0,0.007]
[1727924529267,0.163009,61346.0,61345.0,0.007]
[1727924529488,0.306409,61346.0,61345.0,0.007]
[1727924529704,0.41012191,61346.0,61345.0,0.007]
[1727924529915,0.43453926,61346.0,61345.0,0.007]
[1727924530131,0.43453926,61346.0,61345.0,0.015]
[1727924530132,0.31245251,61346.0,61345.0,0.015]
[1727924530366,0.31245251,61346.0,61345.0,0.008]
[1727924530574,0.163033,61337.0,61336.0,0.24504799]
[1727924530996,0.16935404,61337.0,61336.0,0.24504799]
[1727924531228,0.163041,61335.0,61331.0,0.001636]
[1727924531446,0.163041,61335.0,61333.0,0.24504799]
[1727924531711,0.0064043,61334.0,61331.0,0.164684]
[1727924532143,0.163041,61335.0,61331.0,0.164684]
[1727924532575,0.01042801,61334.0,61331.0,0.164684]
[1727924533028,0.163041,61335.0,61331.0,0.167684]
[1727924533456,0.163045,61333.0,61331.0,0.001636]
[1727924533675,0.163045,61333.0,61331.0,0.003636]
[1727924534119,0.18860549,61333.0,61331.0,0.003636]
[1727924534381,0.163047,61332.0,61331.0,0.003636]
[1727924534623,0.133047,61332.0,61331.0,0.003636]
[1727924534845,0.26624307,61332.0,61331.0,0.003636]
[1727924535308,0.26624307,61332.0,61331.0,0.005636]
[1727924535532,0.26624307,61332.0,61331.0,0.003636]
[1727924535764,0.26624307,61332.0,61331.0,0.001636]
[1727924535985,0.26624307,61332.0,61331.0,0.008636]
[1727924536199,0.27051439,61332.0,61331.0,0.005636]
[1727924536435,0.27051439,61332.0,61331.0,0.001636]
[1727924536644,0.27051439,61332.0,61331.0,0.002636]
[1727924537921,0.27051439,61332.0,61331.0,0.001636]
[1727924538147,0.27051439,61332.0,61331.0,0.002636]
[1727924539425,0.27051439,61332.0,61331.0,0.001636]
[1727924539854,0.27051439,61332.0,61331.0,0.002636]
[1727924541568,0.27665835,61332.0,61331.0,0.002636]
[1727924542234,0.27665835,61332.0,61331.0,0.001636]
[1727924542447,0.27665835,61332.0,61331.0,0.002636]
[1727924546586,0.27747635,61332.0,61331.0,0.002636]
[1727924548839,0.37747635,61332.0,61331.0,0.002636]
[1727924551638,0.40304091,61332.0,61331.0,0.002636]
[1727924552313,0.40304091,61332.0,61322.0,0.001636]
[1727924552314,0.39937,61323.0,61322.0,0.001636]
[1727924552587,0.163076,61321.0,61320.0,0.001636]
[1727924552825,0.39628007,61318.0,61312.0,0.24504799]
[1727924553496,0.163089,61316.0,61302.0,0.32314799]
[1727924553716,0.29632007,61303.0,61302.0,0.24504799]
[1727924553939,0.39632007,61303.0,61302.0,0.24504799]
[1727924554372,0.163134,61299.0,61292.0,0.24504799]
[1727924554588,0.29633007,61299.0,61292.0,0.24504799]
[1727924555035,0.32190815,61299.0,61292.0,0.24504799]
[1727924555943,0.33490815,61299.0,61298.0,0.003636]
[1727924556336,0.33407445,61299.0,61298.0,0.002636]
[1727924556560,0.3400745,61299.0,61298.0,0.002636]
[1727924557440,0.41449642,61299.0,61298.0,0.002636]
[1727924557645,0.41449642,61299.0,61298.0,0.003636]
[1727924557861,0.4400769,61299.0,61298.0,0.003636]
[1727924558068,0.4400769,61299.0,61298.0,0.002636]
[1727924558530,0.4400769,61299.0,61298.0,0.003636]
[1727924558736,0.4320769,61299.0,61298.0,0.002636]
[1727924558943,0.4460769,61299.0,61298.0,0.001636]
[1727924559364,0.4320769,61299.0,61298.0,0.002636]
[1727924559797,0.79034468,61299.0,61278.0,0.0781]
[1727924560009,0.79034468,61299.0,61271.0,0.24504799]
[1727924560010,0.163206,61272.0,61271.0,0.32314799]
[1727924560229,0.163206,61272.0,61271.0,0.24504799]
[1727924560457,0.163212,61270.0,61269.0,0.001636]
[1727924560884,0.33587522,61270.0,61269.0,0.001636]
[1727924561097,0.33787522,61270.0,61269.0,0.001636]
[1727924561310,0.32787522,61270.0,61269.0,0.001636]
[1727924561522,0.278212,61270.0,61269.0,0.001636]
[1727924561761,0.163262,61251.0,61250.0,0.069936]
[1727924561971,0.163262,61251.0,61250.0,0.059936]
[1727924562183,0.18885662,61251.0,61250.0,0.059936]
[1727924563159,0.19185662,61251.0,61250.0,0.059936]
[1727924563386,0.18885662,61251.0,61250.0,0.059936]
[1727924563797,0.19185662,61251.0,61250.0,0.059936]
[1727924564020,0.19560904,61251.0,61250.0,0.059936]
[1727924564226,0.19660904,61251.0,61250.0,0.059936]
[1727924565050,0.19560904,61251.0,61250.0,0.059936]
[1727924565479,0.19360904,61251.0,61250.0,0.059936]
[1727924565915,0.19760904,61251.0,61250.0,0.059936]
[1727924566732,0.19360904,61251.0,61250.0,0.059936]
[1727924566958,0.19560904,61251.0,61250.0,0.059936]
[1727924567535,0.17001442,61251.0,61250.0,0.059936]
[1727924569443,0.16701442,61251.0,61250.0,0.059936]
[1727924569684,0.16901442,61251.0,61250.0,0.059936]
[1727924571586,0.17460436,61251.0,61250.0,0.060756]
[1727924571771,0.17624436,61251.0,61250.0,0.060756]
[1727924572877,0.01098236,61251.0,61250.0,0.060756]
[1727924573132,0.00722994,61251.0,61250.0,0.060756]
[1727924573337,0.00264,61251.0,61250.0,0.319621]
[1727924573991,0.00164,61251.0,61250.0,0.321621]
[1727924574422,0.00164,61251.0,61250.0,0.32288591]
[1727924574632,0.00264,61251.0,61250.0,0.32688591]
[1727924574864,0.00264,61251.0,61250.0,0.323621]
[1727924575498,0.00364,61251.0,61250.0,0.327621]
[1727924575740,0.00264,61251.0,61250.0,0.323621]
[1727924576165,0.00364,61251.0,61250.0,0.327621]
[1727924576375,0.00264,61251.0,61250.0,0.323621]
[1727924577015,0.00264,61251.0,61250.0,0.326621]
[1727924577244,0.00364,61251.0,61250.0,0.330621]
[1727924577473,0.00264,61251.0,61250.0,0.323621]
[1727924577913,0.00364,61251.0,61250.0,0.330621]
[1727924578336,0.00264,61251.0,61250.0,0.323621]
[1727924578747,0.00364,61251.0,61250.0,0.330621]
[1727924579007,0.00364,61251.0,61250.0,0.52251771]
[1727924579245,0.00264,61251.0,61250.0,0.54124302]
[1727924579485,0.00364,61251.0,61250.0,0.54524302]
[1727924579695,0.00264,61251.0,61250.0,0.54124302]
[1727924579897,0.00264,61251.0,61250.0,0.54024302]
[1727924580102,0.00364,61251.0,61250.0,0.54524302]
[1727924580312,0.00264,61251.0,61250.0,0.54124302]
[1727924580521,0.00364,61251.0,61250.0,0.54524302]
[1727924580729,0.00264,61251.0,61250.0,0.54024302]
[1727924580940,0.00264,61251.0,61250.0,0.54124302]
[1727924581577,0.00164,61251.0,61250.0,0.37105631]
[1727924582039,0.02723045,61251.0,61250.0,0.37105631]
[1727924582257,0.02923045,61251.0,61250.0,0.38005631]
[1727924582727,0.02823045,61251.0,61250.0,0.37605631]
[1727924582976,0.02923045,61251.0,61250.0,0.38005631]
[1727924583823,0.03701667,61251.0,61250.0,0.38005631]
[1727924584089,0.0490997,61263.0,61262.0,0.338533]
[1727924584300,0.0490997,61263.0,61262.0,0.47172907]
[1727924584503,0.24504799,61264.0,61263.0,0.16323]
[1727924584729,0.24504799,61264.0,61263.0,0.18209267]
[1727924584962,0.02558733,61270.0,61265.0,0.326448]
[1727924585188,0.02558733,61270.0,61268.0,0.163215]
[1727924585437,0.02558733,61270.0,61269.0,0.01886267]
[1727924585872,0.02558733,61270.0,61269.0,0.18207667]
[1727924587170,0.02558733,61270.0,61269.0,0.25727667]
[1727924587881,0.02558733,61270.0,61269.0,0.25725229]
[1727924588092,0.24504799,61277.0,61274.0,0.163199]
[1727924588305,0.24504799,61277.0,61275.0,0.18203629]
[1727924588536,0.57140199,61284.0,61273.0,0.326405]
[1727924588764,0.2126218,61282.0,61277.0,0.163192]
[1727924589222,0.163182,61282.0,61277.0,0.163192]
[1727924589644,0.326334,61287.0,61276.0,0.326389]
[1727924589865,0.24504799,61285.0,61277.0,0.01887315]
[1727924590081,0.163178,61283.0,61278.0,0.163189]
[1727924592014,0.326334,61287.0,61278.0,0.001]
[1727924592231,0.3761117,61290.0,61278.0,0.001]
[1727924592232,0.163171,61286.0,61278.0,0.001]
[1727924592445,0.0255822,61282.0,61281.0,0.163182]
[1727924592662,0.0255822,61282.0,61281.0,0.242882]
[1727924593337,0.003,61287.0,61281.0,0.0797]
[1727924593562,0.0497897,61290.0,61287.0,0.163165]
[1727924593774,0.2129497,61290.0,61284.0,0.326349]
[1727924593985,0.16316,61290.0,61286.0,0.163169]
[1727924594272,0.18873973,61290.0,61286.0,0.163169]
[1727924594484,0.02557973,61290.0,61284.0,0.326349]
[1727924594695,0.02557973,61290.0,61284.0,0.163173]
[1727924594696,0.163164,61288.0,61284.0,0.163173]
[1727924595128,0.163164,61288.0,61284.0,0.167173]
[1727924595343,0.18873973,61290.0,61285.0,0.163171]
[1727924595559,0.18873973,61290.0,61284.0,0.004]
[1727924595560,0.18873873,61290.0,61286.0,0.163167]
[1727924596203,0.163164,61288.0,61284.0,0.167172]
[1727924596636,0.35189873,61290.0,61286.0,0.004]
[1727924596637,0.163166,61287.0,61286.0,0.004]
[1727924596850,0.326324,61289.0,61286.0,0.004]
[1727924596851,0.163162,61289.0,61286.0,0.004]
[1727924597062,0.163162,61289.0,61283.0,0.326352]
[1727924597274,0.163162,61289.0,61286.0,0.004]
[1727924597481,0.163162,61289.0,61284.0,0.169174]
[1727924597690,0.163162,61289.0,61284.0,0.163174]
[1727924598104,0.163162,61289.0,61286.0,0.007]
[1727924598543,0.163164,61288.0,61286.0,0.007]
[1727924599205,0.001,61287.0,61286.0,0.012]
[1727924599419,0.001,61287.0,61286.0,0.005]
[1727924599914,0.163164,61288.0,61284.0,0.168174]
[1727924600150,0.02558026,61287.0,61286.0,0.005]
[1727924600385,0.02558026,61287.0,61286.0,0.007]
[1727924600894,0.02658026,61287.0,61286.0,0.168169]
[1727924602394,0.02658026,61287.0,61286.0,0.005]
[1727924603113,0.02658026,61287.0,61286.0,0.012]
[1727924604072,0.02658026,61287.0,61286.0,0.175169]
[1727924606859,0.02658026,61287.0,61286.0,0.012]
[1727924607300,0.02658026,61287.0,61286.0,0.175169]
[1727924607541,0.001,61287.0,61286.0,0.175169]
[1727924608785,0.001,61287.0,61286.0,0.012]
[1727924610032,0.001,61287.0,61286.0,0.175169]
[1727924610273,0.001,61287.0,61286.0,0.012]
[1727924610517,0.02657979,61287.0,61286.0,0.175169]
[1727924610764,0.001,61287.0,61286.0,0.175169]
[1727924611254,0.02657977,61287.0,61286.0,0.175169]
[1727924611504,0.02657977,61287.0,61286.0,0.012]
[1727924613297,0.18974577,61287.0,61286.0,0.012]
[1727924614568,0.164166,61287.0,61286.0,0.012]
[1727924616905,0.18974591,61287.0,61286.0,0.012]
[1727924617138,0.28444591,61287.0,61286.0,0.012]
[1727924618146,0.28344591,61287.0,61286.0,0.007]
[1727924618399,0.28744591,61287.0,61286.0,0.007]
[1727924618654,0.12427991,61287.0,61274.0,0.24504799]
[1727924618928,0.163192,61278.0,61274.0,0.24504799]
[1727924619176,0.326377,61279.0,61274.0,0.24504799]
[1727924619499,0.326377,61279.0,61273.0,0.163203]
[1727924619500,0.163193,61277.0,61273.0,0.163203]
[1727924620157,0.02558302,61278.0,61275.0,0.163197]
[1727924620398,0.18877402,61278.0,61274.0,0.1652]
[1727924620634,0.163191,61278.0,61274.0,0.1652]
[1727924620885,0.163191,61278.0,61274.0,0.1632]
[1727924621139,0.163193,61277.0,61273.0,0.167203]
[1727924621652,0.163193,61277.0,61273.0,0.171203]
[1727924621902,0.163196,61276.0,61273.0,0.171203]
[1727924622144,0.326384,61278.0,61273.0,0.171203]
[1727924622426,0.163201,61274.0,61273.0,0.004]
[1727924623153,0.326395,61276.0,61272.0,0.0756]
[1727924623391,0.326395,61276.0,61274.0,0.003]
[1727924623623,0.326395,61276.0,61272.0,0.0756]
[1727924623624,0.35197976,61276.0,61273.0,0.003]
[1727924623894,0.163198,61275.0,61273.0,0.003]
[1727924624172,0.163198,61275.0,61273.0,0.004]
[1727924624414,0.163198,61275.0,61272.0,0.240806]
[1727924624665,0.326383,61278.0,61272.0,0.240806]
[1727924624666,0.163197,61276.0,61274.0,0.001]
[1727924625146,0.163197,61276.0,61272.0,0.240806]
[1727924626067,0.163197,61276.0,61272.0,0.238806]
[1727924626294,0.163197,61276.0,61273.0,0.006]